Cogmind - Beta 16.1 @@@ ROGUE MODE // 2026.03.30 @ 15:58:16 Player: tritri Result: Self-destructed Performance ------------- Evolutions (3) 1500 Regions Visited (6) 1200 Robots Destroyed (78) 390 Value Destroyed (2179) 2179 Prototype IDs (4) 80 Alien Tech Used (0) 0 Bonus (138) 138 TOTAL SCORE: 5487 Bonus ------- High Alert Combat Kills 33 Follower Combat Kills 273 Friendly Fire -168 Cogmind --------- Core Integrity 572/700 Matter 292/300 Energy 100/100 System Corruption 5% Temperature Cool (0) Movement Flying (112) Ox1 Location -7/Factory Parts ------- > --- POWER (1) -------- (None) > --- PROPULSION (4) --- VTOL Module VTOL Module > --- UTILITY (6) ------ Improved Terrain Scan Processor Target Analyzer Improved Light Armor Plating > --- WEAPON (2) ------- Gatling Laser Improved Assault Rifle > --- INVENTORY (5) ---- Light Ion Engine Medium Matter Pod (100) Peak State ------------ > --- POWER ------------ Light Ion Engine > --- PROPULSION ------- Flight Unit Flight Unit Flight Unit Improved VTOL Module > --- UTILITY ---------- Terrain Scan Processor Improved Light Armor Plating Hacking Suite System Shield > --- WEAPON ----------- Advanced EMP Blaster Heavy Mace > --- INVENTORY -------- Medium Matter Pod [Rating: 26] Favorites ----------- Power Ion Engine Engine Ion Engine Power Core Light Nuclear Core Propulsion Light Treads Treads Light Treads Leg Aluminum Leg Flight Unit Flight Unit Utility High-capacity Storage Unit Storage High-capacity Storage Unit Processor Terrain Scan Processor Hackware Hacking Suite Protection Hardened Light Armor Plating Weapon Light Assault Rifle Energy Gun Gatling Laser Energy Cannon Beam Cannon Ballistic Gun Light Assault Rifle Ballistic Cannon Heavy Assault Cannon Launcher Rocket Launcher Impact Weapon Heavy Mace Build | -11 -10 -10 -9 -8 -8 -7 ------- Run | Yrd Mat Min Mat Mat Sto Fac Slots Evolved 6 | . . . 2 2 . 2 Power . | . . . . . . . Propulsion 2 | . . . 1 1 . . Utility 4 | . . . 1 1 . 2 Weapon . | . . . . . . . Parts Attached 46 | 6 5 1 5 13 7 9 Power 5 | 1 . 1 . 1 2 . Engine 4 | 1 . . . 1 2 . Core 1 | . . 1 . . . . Reactor . | . . . . . . . Propulsion 19 | 2 3 . 3 6 1 4 Treads 6 | . 3 . 3 . . . Leg 2 | 2 . . . . . . Wheel . | . . . . . . . Hover . | . . . . . . . Flight 11 | . . . . 6 1 4 Utility 11 | 1 2 . 1 3 . 4 Device . | . . . . . . . Storage 2 | 1 1 . . . . . Processor 3 | . . . 1 . . 2 Hackware 3 | . . . . 2 . 1 Protection 3 | . 1 . . 1 . 1 Artifact . | . . . . . . . Weapon 11 | 2 . . 1 3 4 1 Energy Gun 1 | . . . . . . 1 Energy Cannon 1 | . . . 1 . . . Ballistic Gun 3 | 2 . . . . 1 . Ballistic Cannon 1 | . . . . . 1 . Launcher 4 | . . . . 2 2 . Special Weapon . | . . . . . . . Impact Weapon 1 | . . . . 1 . . Slashing Weapon . | . . . . . . . Piercing Weapon . | . . . . . . . Special Melee Weapon . | . . . . . . . Unidentified Prototypes 4 | . . . . 1 3 . Parts Lost 30 | . . . 9 5 7 9 Power 4 | . . . 1 1 1 1 Propulsion 13 | . . . 5 2 3 3 Utility 5 | . . . 1 . . 4 Weapon 8 | . . . 2 2 3 1 Highest Loss Streak 5 | . . . 5 5 3 2 To Critical Strikes . | . . . . . . . Average Backups 9 | 1 9 14 17 5 2 2 Power 1 | . 1 1 2 . . 1 Propulsion 2 | . 2 4 5 2 . . Utility 1 | . 1 2 2 1 1 1 Weapon 4 | . 4 7 7 2 1 . Tool/Special . | . . . . . . . Unused Backups 7 | . . . . 6 . 1 Power . | . . . . . . . Propulsion . | . . . . . . . Utility 1 | . . . . . . 1 Weapon 6 | . . . . 6 . . Tool/Special . | . . . . . . . Average Slot Usage (%) 79 | . 88 99 80 68 87 44 Engine 6 | . 14 3 . 4 8 6 Core 4 | . . 10 10 . . . Treads 13 | . 14 27 21 . . . Leg 4 | . 13 . . . . . Flight 4 | . . . . 28 26 9 Storage 9 | . 14 14 11 1 . . Processor 4 | . . . 7 9 9 8 Hackware 2 | . . . . 7 17 5 Protection 6 | . 2 14 8 1 9 3 Energy Cannon 1 | . . . 5 4 . . Ballistic Gun 17 | . 28 28 15 . . 2 Ballistic Cannon 1 | . . . . . 2 4 Peak Build Rating 26 | 6 10 12 15 24 26 22 Average Rating 12 | 4 6 11 12 14 23 18 On Entrance 10 | . 6 10 12 6 24 18 Avg Prop Armor Cover (%) 3 | . 8 . . 1 1 . Naked Turns . | . . . . . . . Heaviest Build 54 | 13 53 53 54 43 23 23 Greatest Support 60 | 20 40 40 60 20 20 11 Greatest Overweight (x) 17 | 1 2 1 17 14 4 5 Average Overweight (x) . | . 1 1 1 . . 1 Largest Inventory Capacity 20 | 8 20 20 20 20 5 5 Average Capacity 15 | 6 18 20 20 6 5 5 Most Carried 20 | 2 15 16 20 20 5 3 Average Carried 10 | 1 9 15 18 4 3 2 Final Capacity 20 | 8 20 20 20 5 5 5 Final Carried 20 | 2 15 16 20 2 3 2 Class Distribution -------------------- 81% | Mutant 15% | Scavenger-Mutant Dominant Class ---------------- Mutant | -10/Materials Mutant | -10/Mines Mutant | -9/Materials Mutant | -8/Materials Scavenger-Mutant | -8/Storage Mutant | -7/Factory Resources | -11 -10 -10 -9 -8 -8 -7 ----------- Run | Yrd Mat Min Mat Mat Sto Fac Matter Collected 1911 | 135 435 118 131 211 335 546 Remotely . | . . . . . . . Salvage Created 2524 | . 340 125 539 160 490 870 Parts 151 | . 19 7 37 12 35 41 Haulers Intercepted 7 | . 2 . 2 1 2 . Recyclers Shooed 3 | . 1 . . . 1 1 Parts Field Recycled . | . . . . . . . Retrieved Matter . | . . . . . . . Parts Self-Destructed . | . . . . . . . Prevented . | . . . . . . . Parts Restored . | . . . . . . . Kills | -11 -10 -10 -9 -8 -8 -7 ------- Run | Yrd Mat Min Mat Mat Sto Fac Combat Hostiles Destroyed 48 | . . 3 10 6 14 15 Guns 13 | . . 3 3 . . 7 Cannons 18 | . . . 7 . 3 8 AOE 15 | . . . . 5 10 . Classes Destroyed 13 | . 4 1 3 3 . 2 Worker 7 | . . . 2 1 2 2 Builder 3 | . 1 . 1 1 . . Tunneler 1 | . . . . 1 . . Hauler 7 | . 2 . 2 1 2 . Recycler 7 | . 3 . . . . 4 Operator 4 | . 1 . . 2 1 . Watcher 1 | . . . . 1 . . Swarmer 10 | . . . 2 . 4 4 Grunt 25 | . . 3 7 3 6 6 Brawler 1 | . . . . . . 1 Sentry 9 | . . . 1 2 3 3 Hunter 2 | . . . . 1 1 . Programmer 1 | . . . . . . 1 Best Kill Streak 11 | . 2 2 4 11 11 6 Combat Bots Only 8 | . . 2 3 4 8 3 Max Kills in Single Turn 3 | . 1 1 1 3 3 2 Gunslinging 1 | . . . . . . 1 Exploded 3 | . . . . 3 3 . Melee . | . . . . . . . Uniques/NPCs Destroyed . | . . . . . . . Combat | -11 -10 -10 -9 -8 -8 -7 -------- Run | Yrd Mat Min Mat Mat Sto Fac Hostile Shots Fired 373 | . . 39 95 38 50 151 Missed 134 | . . 10 19 18 18 69 Hits 239 | . . 29 76 20 32 82 Melee 8 | . . . 7 . . 1 Projectile 231 | . . 29 69 20 32 81 Critical Strikes 7 | . . . 3 1 2 1 Damage Taken 3286 | . 39 396 1045 368 576 862 Core 577 | . . 52 217 82 98 128 Absorbed by Shields . | . . . . . . . Core Remaining (%) 72 | 100 . 79 45 . 67 . Volleys Fired 203 | . 29 14 51 24 35 50 Largest 2 | . 2 2 2 2 1 2 Hottest 103 | . 40 40 80 90 50 103 Shots Fired 312 | . 59 27 92 31 35 68 Gun 185 | . 59 27 60 . 2 37 Cannon 88 | . . . 32 9 16 31 Launcher 39 | . . . . 22 17 . Special . | . . . . . . . Kinetic 214 | . 59 27 60 . 18 50 Thermal 59 | . . . 32 9 . 18 Explosive 33 | . . . . 22 11 . Electromagnetic 6 | . . . . . 6 . Robot Hit Streak 19 | . 6 7 10 5 7 19 Robot Miss Streak 4 | . 4 2 2 3 3 4 Penetration Max 1 | . . . . . . 1 Secondary Targets 3 | . . . . . . 3 Max Gunslinging Chain 1 | . . . . . . 1 Shots Hit Robots 201 | . 33 20 61 19 21 47 Core Hits 144 | . 13 10 29 32 28 32 Critical Kills 4 | . 1 . . 1 . 2 Critical Parts Destroyed 3 | . . 1 1 1 . . Critical Strikes 16 | . 1 1 1 2 3 8 Meltdown 1 | . . . . 1 . . Destroy 5 | . 1 1 1 . . 2 Blast 9 | . . . . . 3 6 Smash 1 | . . . . 1 . . Melee Attacks 9 | . . . . 2 7 . Impact 9 | . . . . 2 7 . Slashing . | . . . . . . . Piercing . | . . . . . . . Sneak Attacks 1 | . . . . 1 . . Combat Hostiles . | . . . . . . . Follow-up Attacks . | . . . . . . . Damage Inflicted 6485 | . 352 236 813 1424 1897 1763 Guns 1590 | . 352 213 404 . 28 593 Cannons 2207 | . . . 409 88 540 1170 Explosions 2452 | . . . . 1220 1232 . Melee 213 | . . . . 116 97 . Ramming 23 | . . 23 . . . . Kinetic 2886 | . 352 213 404 . 568 1349 Thermal 911 | . . . 409 88 . 414 Explosive 2243 | . . . . 1220 1023 . Electromagnetic 209 | . . . . . 209 . Impact 213 | . . . . 116 97 . Slashing . | . . . . . . . Piercing . | . . . . . . . Highest Corruption 5 | . 3 3 . 4 4 5 Average Corruption 3 | . 2 3 . 4 4 3 Corruption Purged . | . . . . . . . Corruption Blocked . | . . . . . . . Effects 75 | . 34 20 . 2 6 13 Message Errors 16 | . 9 2 . 1 1 3 Matter Fused 21 | . 6 7 . . 3 5 Heat Flow Errors 14 | . 7 5 . 1 1 . Energy Discharges 4 | . 1 2 . . . 1 Parts Rejected 1 | . . 1 . . . . Data Loss (minor) 9 | . 5 2 . . . 2 Data Loss (major) 4 | . 2 . . . . 2 Misfires 2 | . 2 . . . . . Alerts 2 | . 1 . . . 1 . Weapon Failures 2 | . 1 1 . . . . Overload Shots . | . . . . . . . Overflow Damage 274 | . . . . 70 154 50 Projectiles 102 | . . . . . 52 50 Explosions 128 | . . . . 41 87 . Melee 44 | . . . . 29 15 . Knockbacks 5 | . . . . . 3 2 Impact . | . . . . . . . Kinetic 5 | . . . . . 3 2 Secondary . | . . . . . . . Self-Inflicted Damage 185 | . . . . 53 132 . Shots 7 | . . . . 2 5 . Rammed 6 | . 1 5 . . . . Targets Rammed 6 | . 1 5 . . . . Kicked . | . . . . . . . Crushed . | . . . . . . . Highest Temperature 330 | . 253 261 330 177 225 139 Average Temperature 77 | . 111 73 90 60 51 39 Received Heat Transfer 1113 | . . 222 351 126 153 261 Siege Activations . | . . . . . . . Martial Activations . | . . . . . . . Shielding Activations . | . . . . . . . Robots Disrupted . | . . . . . . . Combat Hostiles . | . . . . . . . Robots Corrupted 2 | . . . . 1 1 . Combat Hostiles 1 | . . . . . 1 . Parts Fried 1 | . . . . . 1 . Impact Corruptions 2 | . . . . 1 1 . Robots Melted 1 | . . . . 1 . . Combat Hostiles 1 | . . . . 1 . . Parts Melted 5 | . . . . 2 . 3 Heat Transferred 1986 | . . . 851 185 . 950 Parts Sabotaged . | . . . . . . . Parts Stolen . | . . . . . . . Parts Stripped . | . . . . . . . Power Chain Reactions . | . . . . . . . Alert | -11 -10 -10 -9 -8 -8 -7 ------- Run | Yrd Mat Min Mat Mat Sto Fac Maximum Alert Level 2 | . . . 1 1 2 . Low Security (%) 92 | 100 100 100 98 76 6 100 Level 1 5 | . . . 1 23 60 . Level 2 2 | . . . . . 32 . Level 3 . | . . . . . . . Level 4 . | . . . . . . . Level 5 . | . . . . . . . High Security . | . . . . . . . Max Security . | . . . . . . . Peak Influence 477 | . 9 48 200 216 477 198 Initial 198 | . . . . 31 80 198 Average 77 | . . 4 120 112 378 119 Influence Increases 2090 | . 39 126 537 320 608 460 Destroy 0b10 Robot/C 1180 | . . 100 380 120 280 300 Destroy 0b10 Robot/NC 160 | . 35 . 35 35 25 30 Destroy Leader 288 | . 4 20 86 44 54 80 Allied During Kill 23 | . . 6 17 . . . Successful Hack 54 | . . . 19 13 . 22 Disable Machine 150 | . . . . 45 90 15 Destroy Structure 160 | . . . . 63 84 13 Lose Combat Pursuer 75 | . . . . . 75 . Influence Decreases 1926 | . 39 126 462 204 361 734 Entered New Map 395 | . . . . 44 111 240 Time Decay 1191 | . 39 106 352 110 180 404 Lost Part 300 | . . . 90 50 70 90 Lost Ally 40 | . . 20 20 . . . Squads Dispatched 12 | . 2 . 2 1 1 6 Investigation 5 | . 1 . 2 . . 2 Extermination 2 | . . . . . . 2 Reinforcement 5 | . 1 . . 1 1 2 Assault . | . . . . . . . Garrison . | . . . . . . . Intercept . | . . . . . . . Searches Triggered . | . . . . . . . Construction Impeded . | . . . . . . . Haulers Reinforced . | . . . . . . . Active Scanning Responses . | . . . . . . . Cargo Convoy Interrupts . | . . . . . . . Stealth | -11 -10 -10 -9 -8 -8 -7 --------- Run | Yrd Mat Min Mat Mat Sto Fac Distress Signals 7 | . 1 . 2 1 2 1 Communications Jammed . | . . . . . . . Distress Signals . | . . . . . . . Times Spotted 85 | . 9 6 21 9 21 19 Peak Tracking Total 5 | . 1 2 5 4 5 3 Tactical Retreats 2 | . . . . . 2 . Traps | -11 -10 -10 -9 -8 -8 -7 ------- Run | Yrd Mat Min Mat Mat Sto Fac Traps Triggered 8 | . 3 . 1 . 2 2 Indirectly 1 | . . . . . 1 . Trap Hack Attempts . | . . . . . . . Triggered . | . . . . . . . Disarmed . | . . . . . . . Reprogrammed . | . . . . . . . Reused . | . . . . . . . Traps Extracted . | . . . . . . . Installed . | . . . . . . . Triggered . | . . . . . . . Most Traps Carried 1 | . . 1 1 1 . . Machines | -11 -10 -10 -9 -8 -8 -7 ---------- Run | Yrd Mat Min Mat Mat Sto Fac Machines Disabled 10 | . . . . 3 6 1 Max in Single Turn 2 | . . . . 1 2 1 Machines Repaired . | . . . . . . . Machines Dismantled . | . . . . . . . Machines Sabotaged . | . . . . . . . Overloaded Fab Kills . | . . . . . . . Hacking | -11 -10 -10 -9 -8 -8 -7 --------- Run | Yrd Mat Min Mat Mat Sto Fac Machines Accessed 18 | . 3 . 5 3 2 5 Terminals 11 | . 2 . 3 3 2 1 Fabricators 2 | . . . . . . 2 Repair Stations 1 | . . . 1 . . . Recycling Units 3 | . 1 . . . . 2 Scanalyzers 1 | . . . 1 . . . Garrison Access . | . . . . . . . Total Hacks 40 | . 5 . 14 8 3 10 Successful 21 | . 2 . 7 3 2 7 Failed 19 | . 3 . 7 5 1 3 Catastrophic 7 | . 1 . 3 2 1 . Database Lockouts . | . . . . . . . Manual 13 | . 3 . 4 4 1 1 Terminals 25 | . 4 . 8 8 3 2 Fabricators 6 | . . . . . . 6 Repair Stations 2 | . . . 2 . . . Recycling Units 3 | . 1 . . . . 2 Scanalyzers 4 | . . . 4 . . . Garrison Access . | . . . . . . . Terminal Hacks 11 | . 1 . 3 3 2 2 Record 5 | . 1 . 1 1 1 1 Robot Analysis 2 | . . . 1 1 . . Fabricator Index 3 | . . . . 1 1 1 Scanalyzer Index 1 | . . . 1 . . . Fabricator Hacks 3 | . . . . . . 3 Load Schematic 2 | . . . . . . 2 Build 1 | . . . . . . 1 Repair Station Hacks . | . . . . . . . Recycling Unit Hacks 3 | . 1 . . . . 2 Report Inventory 3 | . 1 . . . . 2 Scanalyzer 4 | . . . 4 . . . Insert Component 2 | . . . 2 . . . Analyze 1 | . . . 1 . . . Retrieve Study 1 | . . . 1 . . . Garrison Access Hacks . | . . . . . . . Unauthorized Hacks . | . . . . . . . Terminals . | . . . . . . . Fabricators . | . . . . . . . Repair Stations . | . . . . . . . Recycling Units . | . . . . . . . Scanalyzers . | . . . . . . . Garrison Access . | . . . . . . . Data Cores Recovered 1 | . . . . 1 . . Used 1 | . . . . 1 . . Hacking Detections 10 | . 2 . 4 2 . 2 Full Trace Events 4 | . 1 . 1 . . 2 Feedback Events 1 | . . . . . . 1 Corruption 1 | . . . . . . 1 Feedback Blocked . | . . . . . . . Robot Schematics Acquired . | . . . . . . . Robots Built . | . . . . . . . Authchips . | . . . . . . . Time . | . . . . . . . Total Robot Build Rating . | . . . . . . . Part Schematics Acquired 1 | . . . 1 . . . Parts Built 1 | . . . . . . 1 Authchips . | . . . . . . . Time 36 | . . . . . . 36 Total Part Build Rating 3 | . . . . . . 3 Part Studies Acquired 1 | . . . 1 . . . Parts Repaired . | . . . . . . . Time . | . . . . . . . Parts Recycled . | . . . . . . . Recycled Matter . | . . . . . . . Retrieved Matter . | . . . . . . . Retrieved Components . | . . . . . . . Parts Scanalyzed 1 | . . . 1 . . . Part Schematics Acquired 1 | . . . 1 . . . Parts Damaged . | . . . . . . . Bothacking | -11 -10 -10 -9 -8 -8 -7 ------------ Run | Yrd Mat Min Mat Mat Sto Fac Used RIF Installer . | . . . . . . . Robots Hacked . | . . . . . . . Non-combat . | . . . . . . . Combat . | . . . . . . . Robot Hacks Applied . | . . . . . . . Relay Couplers Released . | . . . . . . . Fabnet Peak Effective % . | . . . . . . . Robots Rewired . | . . . . . . . Allies Hacked . | . . . . . . . Hacks Repelled . | . . . . . . . Allies | -11 -10 -10 -9 -8 -8 -7 -------- Run | Yrd Mat Min Mat Mat Sto Fac Total Allies 2 | . . 2 . . . . Largest Group 2 | . . 2 1 . . . Highest-Rated Group 46 | . . 46 31 . . . Highest-Rated Ally 31 | . . 31 31 . . . Total Orders . | . . . . . . . Ally Attacks 40 | . . 5 35 . . . Total Damage 507 | . . 83 424 . . . Kills 13 | . . 2 11 . . . Allies Corrupted . | . . . . . . . Allies Melted . | . . . . . . . Intel | -11 -10 -10 -9 -8 -8 -7 ------- Run | Yrd Mat Min Mat Mat Sto Fac Active Infowar (turns) . | . . . . . . . Robot Analysis Total 2 | . . . 1 1 . . Derelict Logs Recovered 1 | . . 1 . . . . Drone Launches . | . . . . . . . Drone Recoveries . | . . . . . . . Exploration | -11 -10 -10 -9 -8 -8 -7 ------------- Run | Yrd Mat Min Mat Mat Sto Fac Turns Passed 5536 | 72 1779 934 1191 221 363 976 Spaces Moved 2846 | 50 713 365 447 313 461 497 Core 98 | 5 . . 9 2 . 82 Treads 1255 | . 452 365 438 . . . Legs 306 | 45 261 . . . . . Wheels . | . . . . . . . Hover . | . . . . . . . Flight 1187 | . . . . 311 461 415 Fastest Speed 31 | 50 120 240 160 31 31 112 Average Speed 170 | 124 235 240 235 43 53 163 Slowest Speed 900 | 190 320 240 900 750 360 360 Overloaded Moves . | . . . . . . . Propulsion Burnouts . | . . . . . . . Robots Hopped 8 | . . . . 6 2 . Potential Cave-ins . | . . . . . . . Cave-ins Triggered . | . . . . . . . Exploration Rate (%) 41 | 4 95 62 31 18 60 18 Regions Visited 6 Branch Regions 2 Pre-discovered Areas . | . . . . . . . Known Exits Taken 1 | . . . 1 . . . Unknown Exits Taken 5 | 1 1 1 . 1 1 . Scrap Searched 2 | . . 2 . . . . Spaces Dug 10 | . . . . . 10 . Terrain Destroyed 188 | . . . . 88 87 13 Melee . | . . . . . . . Projectile 20 | . . . . . 7 13 AOE 168 | . . . . 88 80 . Terrain Rammed . | . . . . . . . Walls Destroyed . | . . . . . . . Machines Disabled . | . . . . . . . Actions | -11 -10 -10 -9 -8 -8 -7 --------- Run | Yrd Mat Min Mat Mat Sto Fac Total 3168 | 57 762 391 507 357 524 570 Wait 27 | . . 5 . . 9 13 Move 2825 | 49 712 364 446 301 456 497 Hop 7 | . . . . 5 2 . Pick Up 30 | 2 13 1 5 5 4 . Fast Attach 26 | 6 1 . 4 4 2 9 Attach 18 | . 1 1 1 10 4 1 Detach 3 | . 1 . . . 2 . Swap 6 | . 3 1 . 1 1 . Drop 8 | . 1 . . 5 2 . Fire 203 | . 29 14 51 24 35 50 Melee 9 | . . . . 2 7 . Ram . | . . . . . . . Kick . | . . . . . . . Crush 6 | . 1 5 . . . . Escape Stasis . | . . . . . . . Rewire . | . . . . . . . Trap . | . . . . . . . Miscellaneous . | . . . . . . . Route ------- -11/Scrapyard -10/Materials (discovered 5 exits: *Mat x3 / [*Min] / [*Sub]) -10/Mines (discovered 2 exits: *Mat / [*Sub]) -9/Materials (discovered 2 exits: *Mat x2) -8/Materials -8/Storage -7/Factory History --------- Turn | Location | Event 7 | -11/Scrapyard | Discovered new exit (range 16) 73 | -11/Scrapyard | Entered Materials 74 | -10/Materials | Met a group of wandering Federalists 258 | -10/Materials | Discovered new exit (range 7) 302 | -10/Materials | Build established: Mutant 502 | -10/Materials | Discovered new exit (range 15) 849 | -10/Materials | Discovered new exit (range 16) 1500 | -10/Materials | Discovered new exit (range 10) 1697 | -10/Materials | Discovered new exit (range 5) 1852 | -10/Materials | Entered Mines 1986 | -10/Mines | Found a hidden stash of uninstalled traps 2661 | -10/Mines | Learned location of 1 exit from Materials 2745 | -10/Mines | Found DCF Scrap (14 items) 2771 | -10/Mines | Discovered new exit (range 8) 2786 | -10/Mines | Discovered new exit (range 9) 2786 | -10/Mines | Entered Materials 2786 | -9/Materials | Accompanied by 1 ally 2786 | -9/Materials | Evolved 2 slots: Propulsion x1, Utility x1 2787 | -9/Materials | Identified exit to Materials 2791 | -9/Materials | Led the pair of lost Derelicts to an unsafe place 3855 | -9/Materials | Build established: Scavenger-Mutant 3947 | -9/Materials | Discovered exit to Materials (range 4) 3971 | -9/Materials | Core integrity fell below 50% 3977 | -9/Materials | Entered another Materials area 3977 | -8/Materials | Evolved 2 slots: Propulsion x1, Utility x1 4008 | -8/Materials | Lost 5 parts (1p3n1w) 4032 | -8/Materials | Discovered new exit (range 15) 4136 | -8/Materials | Lost 5 parts (1p2n2w) 4198 | -8/Materials | Entered Storage 4256 | -8/Storage | Met 01-MTF 4269 | -8/Storage | Destroyed 8 combat bots 4413 | -8/Storage | Discovered new exit (range 15) 4481 | -8/Storage | Lost 3 parts (2n1w) 4561 | -8/Storage | Entered Factory 4561 | -7/Factory | Accompanied by 1 ally (01-MTF) 4561 | -7/Factory | Evolved 2 slots: Utility x2 4564 | -7/Factory | 01-MTF left 4832 | -7/Factory | Build established: Mutant 4875 | -7/Factory | Fabricated Hacking Suite (x1) 5537 | -7/Factory | Self-destructed Last Messages --------------- 05485_ K-01 Serf collects debris. 05485_ Acquired 19 matter. 05487_ R-06 Scavenger collects Unknown Flight Unit. 05488_ R-06 Scavenger collects Lgt. Ion Engine. 05488_ K-01 Serf collects debris. 05489_ Acquired Unknown Flight Unit. 05489_ Identified VTOL Module. 05494_ K-01 Serf collects debris. 05494_ R-06 Scavenger destroyed. 05497_ K-01 Serf collects debris. 05499_ Acquired VTOL Module. 05500_ K-01 Serf collects debris. 05501_ Acquired 26 matter. 05503_ K-01 Serf collects debris. 05519_ System corrupted: Matter fused (-8). 05531_ ALERT: Potential suspicious activity detected, Programmers report to Factory Zone 1E. 05534_ M Z0RX&CTMO B34A2HBZ=CVWL,OYRACW%XQ4472 Map ----- +----------------------------------------------------+ | | | | | | | | | | | | | | | | | | | | | | | | | | | | | | | | | | | | | ?????????????????????????????????????????????????? | | ?????????????????????????????????????????????????? | | ????????????????????##########???????????????????? | | ????????????????????# #???????????????????? | | ????????????????????# ##########??????????? | | ????????????????????# + +??????????? | | ????????????????????# # ######??????????? | | ????????????????????# @ # # #??????????? | | ????????????????????# + + #??????????? | | ????????????????????# ] ### # #??????????? | | ?????????????####???# ## #? #??????????? | | ???????????? ??# = ##T #? #??????????? | | ???????????# ######+###### # ! #??????????? | | ???????????# ##### # #??????????? | | ???????????+ + #??####+###? | | ???????????# ####### #?? | | ???????????# ############## | | ???????????# | | ????????????#### %%%!% | | ???????????????# !%! | | ???????????????# % ^! | | ???????????????# | | ???????????????# | | ???????????????# | | ???????????????# """" """" """" """" | | ???????????????# """" """" """" """" | | ??????????????# ?"""" """" """" """" | | ???????????????????""" """" """" """" | | ?????????????????????"??""" """" """" | | ?????????????????????????"" """" """" ##### | | ??????????????????????? # | | ??????????????????????? # """ | +----------------------------------------------------+ Best States ------------- Heat Dissipation 34 Energy Generation 14 Energy Capacity 280 Matter Stores 300 Matter Capacity 300 Sight Range 16 Terrain Scan Density 110 Armor Coverage 150 Evasion (%) 63 Target Analysis 5 Recoil Reduction 3 Offensive Hacking 10 Defensive Hacking 10 Item Schematics ----------------- Hacking Suite | -9/Materials | Scanalyzed Robot Schematics ------------------ None Fabricated ------------ Hacking Suite | x1 | -7/Factory Repaired ---------- Nothing Studied --------- Flight Unit | -9/Materials | Hacked Alien Tech Used ----------------- None Achievements -------------- None Challenges ------------ None Game ------ Seed GrapheneMachineDissipator Manual? 0 Play Time 00:51:47 Cumulative 5.1 hours Start 2026.03.30 @ 14:39:35 End 2026.03.30 @ 15:58:16 Sessions 1 Manual Loads 0 Difficulty Rogue Special Mode None Game No. 12 Rogue 12 Adventurer 0 Explorer 0 Win Type - Total 0 Types 0/0/0/0/0/0/0/0/0/0 Lore% 7 Gallery% 8 Achievement% 15 Wizard Run 0 Options --------- Layout 1 ASCII 0 Keyboard 1 Movement Vi Keybinds 0 Fullscreen 1 Font 24/Smallcaps Map View 50x40 Zoom Use 0% Tactical HUD 1 Map Filters NONE Filters NONE Steam 1 RUN: 9a47e633-a5fa-4c33-9aca-acd225a3452b